fUSD/lending_fUSD_20250306
["ID","MTS","AMOUNT","RATE_DAILY","PERIOD"]
[355565847,1741301442193,-500.0,9.998e-05,2]
[355565848,1741301442203,-500.0,9.998e-05,2]
[355565849,1741301442212,-501.48179301,9.998e-05,2]
[355565850,1741301442221,-500.0,9.998e-05,2]
[355565851,1741301442231,-515.45101041,9.998e-05,2]
[355565852,1741301442241,-500.0,9.998e-05,2]
[355565853,1741301442252,-331.1788529,9.998e-05,2]
[355565854,1741301442263,-500.0,9.998e-05,2]
[355565855,1741301442273,-500.0,9.998e-05,2]
[355565856,1741301442285,-548.68563862,9.998e-05,2]
[355565857,1741301442295,-500.0,9.998e-05,2]
[355565858,1741301442306,-500.0,9.998e-05,2]
[355565859,1741301442316,-500.0,9.998e-05,2]
[355565860,1741301442326,-500.0,9.998e-05,2]
[355565861,1741301442336,-500.0,9.998e-05,2]
[355565862,1741301442345,-639.19,9.998e-05,2]
[355565863,1741301442355,-500.0,9.998e-05,2]
[355565864,1741301442364,-511.51514285,9.998e-05,2]
[355565865,1741301442373,-500.0,9.998e-05,2]
[355565866,1741301442383,-500.0,9.998e-05,2]
[355565867,1741301442392,-500.0,9.998e-05,2]
[355565868,1741301442402,-500.0,9.998e-05,2]
[355565869,1741301442411,-500.0,9.998e-05,2]
[355565870,1741301442421,-500.0,9.998e-05,2]
[355565871,1741301442432,-500.0,9.998e-05,2]
[355565872,1741301442443,-184.3693583,9.998e-05,2]
[355565873,1741301442455,-620.24,9.998e-05,2]
[355565874,1741301442464,-500.0,9.998e-05,2]
[355565875,1741301442474,-500.0,9.998e-05,2]
[355565876,1741301442484,-500.0,9.998e-05,2]
[355565877,1741301442493,-515.93720863,9.998e-05,2]
[355565878,1741301442502,-769.7,9.998e-05,2]
[355565879,1741301442513,-500.0,9.998e-05,2]
[355565880,1741301442524,-500.0,9.998e-05,2]
[355565881,1741301442534,-500.0,9.998e-05,2]
[355565882,1741301442544,-500.0,9.998e-05,2]
[355565883,1741301442554,-500.0,9.998e-05,2]
[355565884,1741301442565,-600.584838,9.998e-05,2]
[355565885,1741301442575,-500.0,9.998e-05,2]
[355565886,1741301442584,-501.28181292,9.998e-05,2]
[355565887,1741301442594,-500.0,9.998e-05,2]
[355565888,1741301442603,-500.0,9.998e-05,2]
[355565889,1741301442612,-500.0,9.998e-05,2]
[355565890,1741301442621,-514.48576358,9.998e-05,2]
[355565891,1741301442631,-502.04,9.998e-05,2]
[355565892,1741301442640,-500.0,9.998e-05,2]
[355565893,1741301442649,-500.0,9.998e-05,2]
[355565894,1741301442658,-500.0,9.998e-05,2]
[355565895,1741301442668,-500.0,9.998e-05,2]
[355565896,1741301442678,-500.0,9.998e-05,2]
[355565897,1741301442688,-500.0,9.998e-05,2]
[355565898,1741301442697,-500.0,9.998e-05,2]
[355565899,1741301442707,-768.68,9.998e-05,2]
[355565900,1741301442716,-500.0,9.998e-05,2]
[355565901,1741301442726,-500.0,9.998e-05,2]
[355565902,1741301442736,-500.0,9.998e-05,2]
[355565903,1741301442746,-500.0,9.998e-05,2]
[355565905,1741301442756,-500.0,9.998e-05,2]
[355565906,1741301442766,-503.12175583,9.998e-05,2]
[355565907,1741301442775,-832.88,9.998e-05,2]
[355565908,1741301442784,-500.0,9.998e-05,2]
[355565909,1741301442794,-500.0,9.998e-05,2]
[355565910,1741301442803,-500.0,9.998e-05,2]
[355565911,1741301442813,-500.0,9.998e-05,2]
[355565912,1741301442822,-222.15025898,9.998e-05,2]
[355565913,1741301442831,-823.49,9.998e-05,2]
[355565914,1741301442840,-508.64,9.998e-05,2]
[355565915,1741301442850,-500.0,9.998e-05,2]
[355565916,1741301442860,-500.0,9.998e-05,2]
[355565917,1741301442870,-544.98649734,9.998e-05,2]
[355565918,1741301442879,-500.0,9.998e-05,2]
[355565919,1741301442888,-500.0,9.998e-05,2]
[355565920,1741301442898,-500.0,9.998e-05,2]
[355565922,1741301442907,-898.51,9.998e-05,2]
[355565924,1741301442916,-695.62,9.998e-05,2]
[355565925,1741301442926,-215.92650591,9.998e-05,2]
[355565926,1741301442936,-500.0,9.998e-05,2]
[355565927,1741301442945,-500.0,9.998e-05,2]
[355565928,1741301442955,-500.0,9.998e-05,2]
[355565929,1741301442964,-500.0,9.998e-05,2]
[355565930,1741301442974,-500.0,9.998e-05,2]
[355565931,1741301442984,-498.06611924,9.998e-05,2]
[355565932,1741301442993,-500.0,9.998e-05,2]
[355565933,1741301443003,-500.0,9.998e-05,2]
[355565934,1741301443012,-504.95105715,9.998e-05,2]
[355565935,1741301443023,-500.0,9.998e-05,2]
[355565936,1741301443032,-500.0,9.998e-05,2]
[355565937,1741301443041,-500.0,9.998e-05,2]
[355565938,1741301443051,-211.74083238,9.998e-05,2]
[355565939,1741301443061,-500.0,9.998e-05,2]
[355565940,1741301443070,-501.06428451,9.998e-05,2]
[355565941,1741301443079,-862.06,9.998e-05,2]
[355565942,1741301443088,-500.0,9.998e-05,2]
[355565943,1741301443098,-500.0,9.998e-05,2]
[355565944,1741301443107,-500.0,9.998e-05,2]
[355565946,1741301443116,-1809.79,9.998e-05,2]
[355565948,1741301443125,-500.0,9.998e-05,2]
[355565949,1741301443134,-500.0,9.998e-05,2]
[355565951,1741301443144,-506.01275583,9.998e-05,2]
[355565953,1741301443153,-725.08,9.998e-05,2]
[355565954,1741301443163,-172.81101457,9.998e-05,2]
[355565956,1741301443172,-500.0,9.998e-05,2]
[355565958,1741301443181,-500.0,9.998e-05,2]
[355565959,1741301443191,-500.0,9.998e-05,2]
[355565960,1741301443201,-500.0,9.998e-05,2]
[355565961,1741301443210,-500.0,9.998e-05,2]
[355565962,1741301443219,-500.0,9.998e-05,2]
[355565963,1741301443229,-500.0,9.998e-05,2]
[355565964,1741301443238,-500.0,9.998e-05,2]
[355565965,1741301443247,-500.0,9.998e-05,2]
[355565966,1741301443256,-485.82723012,9.998e-05,2]
[355565967,1741301443266,-500.0,9.998e-05,2]
[355565968,1741301443275,-500.0,9.998e-05,2]
[355565969,1741301443284,-1312.34,9.998e-05,2]
[355565970,1741301443293,-500.0,9.998e-05,2]
[355565971,1741301443302,-500.0,9.998e-05,2]
[355565972,1741301443312,-500.0,9.998e-05,2]
[355565973,1741301443321,-500.0,9.998e-05,2]
[355565974,1741301443331,-746.27,9.998e-05,2]
[355565975,1741301443340,-1165.8,9.998e-05,2]
[355565976,1741301443350,-500.0,9.998e-05,2]
[355565977,1741301443359,-500.0,9.998e-05,2]
[355565978,1741301443368,-1498.67,9.998e-05,2]
[355565979,1741301443378,-1161.13,9.998e-05,2]
[355565980,1741301443387,-601.99,9.998e-05,2]
[355565981,1741301443396,-1445.2,9.998e-05,2]
[355565982,1741301443406,-500.0,9.998e-05,2]
[355565983,1741301443415,-500.0,9.998e-05,2]
[355565984,1741301443424,-432.04335702,9.998e-05,2]
[355565985,1741301443433,-1859.92,9.998e-05,2]
[355565986,1741301443442,-1051.88,9.998e-05,2]
[355565987,1741301443451,-1054.07,9.998e-05,2]
[355565988,1741301443459,-1970.22,9.998e-05,2]
[355565989,1741301443468,-705.75,9.998e-05,2]
[355565990,1741301443478,-1145.21,9.998e-05,2]
[355565991,1741301443488,-500.0,9.998e-05,2]
[355565992,1741301443497,-571.6333158,9.998e-05,2]
[355565993,1741301443506,-3333.97,9.998e-05,2]
[355565994,1741301443516,-500.0,9.998e-05,2]
[355565995,1741301443525,-2395.54,9.998e-05,2]
[355565996,1741301443534,-2476.76,9.998e-05,2]
[355565997,1741301443543,-533.31,9.998e-05,2]
[355565998,1741301443555,-2675.79,9.998e-05,2]
[355565999,1741301443566,-1384.88,9.998e-05,2]
[355566000,1741301443575,-572.45,9.998e-05,2]
[355566001,1741301443584,-572.45,9.998e-05,2]
[355566002,1741301443594,-500.0,9.998e-05,2]
[355566003,1741301443604,-500.0,9.998e-05,2]
[355566004,1741301443613,-1791.56,9.998e-05,2]
[355566005,1741301443622,-1105.54,9.998e-05,2]
[355566006,1741301443632,-500.0,9.998e-05,2]
[355566007,1741301443642,-500.0,9.998e-05,2]
[355566008,1741301443651,-500.0,9.998e-05,2]
[355566009,1741301443660,-500.0,9.998e-05,2]
[355566010,1741301443669,-1768.02,9.998e-05,2]
[355566011,1741301443679,-500.0,9.998e-05,2]
[355566012,1741301443688,-500.0,9.998e-05,2]
[355566013,1741301443698,-1517.29,9.998e-05,2]
[355566014,1741301443707,-500.0,9.998e-05,2]
[355566015,1741301443716,-3292.03,9.998e-05,2]
[355566016,1741301443725,-1912.36,9.998e-05,2]
[355566017,1741301443735,-500.0,9.998e-05,2]
[355566018,1741301443745,-500.0,9.998e-05,2]
[355566019,1741301443754,-886.76,9.998e-05,2]
[355566020,1741301443764,-1655.25,9.998e-05,2]
[355566021,1741301443773,-4476.38,9.998e-05,2]
[355566022,1741301443784,-857.6,9.998e-05,2]
[355566023,1741301443793,-1615.1,9.998e-05,2]
[355566024,1741301443802,-513.34224906,9.998e-05,2]
[355566025,1741301443811,-1041.15,9.998e-05,2]
[355566026,1741301443820,-500.95149132,9.998e-05,2]
[355566027,1741301443830,-504.99284269,9.998e-05,2]
[355566028,1741301443840,-502.42489905,9.998e-05,2]
[355566029,1741301443849,-500.0,9.998e-05,2]
[355566030,1741301443860,-334.57557715,9.998e-05,2]
[355566031,1741301443869,-900.78,9.998e-05,2]
[355566032,1741301443878,-500.0,9.998e-05,2]
[355566033,1741301443888,-1828.08,9.998e-05,2]
[355566034,1741301443897,-500.82790765,9.998e-05,2]
[355566035,1741301443906,-500.0,9.998e-05,2]
[355566036,1741301443915,-502.66632263,9.998e-05,2]
[355566037,1741301443924,-500.0,9.998e-05,2]
[355566038,1741301443934,-500.0,9.998e-05,2]
[355566039,1741301443943,-1067.49,9.998e-05,2]
[355566040,1741301443952,-1118.5,9.998e-05,2]
[355566041,1741301443962,-500.0,9.998e-05,2]
[355566042,1741301443971,-11047.57,9.998e-05,2]
[355566043,1741301443982,-500.0,9.998e-05,2]
[355566044,1741301443991,-502.9959701,9.998e-05,2]
[355566045,1741301444000,-3957.0,9.998e-05,2]
[355566046,1741301444009,-500.0,9.998e-05,2]
[355566047,1741301444018,-500.0,9.998e-05,2]
[355566048,1741301444028,-500.0,9.998e-05,2]
[355566049,1741301444037,-4422.14,9.998e-05,2]
[355566050,1741301444046,-500.0,9.998e-05,2]
[355566051,1741301444055,-2047.35,9.998e-05,2]
[355566052,1741301444064,-500.0,9.998e-05,2]
[355566053,1741301444074,-500.0,9.998e-05,2]
[355566054,1741301444084,-500.0,9.998e-05,2]
[355566055,1741301444093,-1688.98,9.998e-05,2]
[355566056,1741301444103,-500.0,9.998e-05,2]
[355566057,1741301444112,-1007.69,9.998e-05,2]
[355566058,1741301444122,-500.0,9.998e-05,2]
[355566059,1741301444131,-1413.22,9.998e-05,2]
[355566060,1741301444140,-1008.58,9.998e-05,2]
[355566061,1741301444149,-503.04044503,9.998e-05,2]
[355566062,1741301444159,-2228.8,9.998e-05,2]
[355566063,1741301444168,-500.0,9.998e-05,2]
[355566064,1741301444178,-500.0,9.998e-05,2]
[355566065,1741301444187,-3004.0,9.998e-05,2]
[355566066,1741301444197,-921.9,9.998e-05,2]
[355566067,1741301444206,-1177.73,9.998e-05,2]
[355566068,1741301444215,-1679.47,9.998e-05,2]
[355566069,1741301444225,-500.0,9.998e-05,2]
[355566070,1741301444234,-4387.82,9.998e-05,2]
[355566071,1741301444243,-500.0,9.998e-05,2]
[355566072,1741301444253,-500.0,9.998e-05,2]
[355566073,1741301444262,-500.0,9.998e-05,2]
[355566074,1741301444272,-500.0,9.998e-05,2]
[355566075,1741301444281,-2819.49,9.998e-05,2]
[355566076,1741301444290,-500.0,9.998e-05,2]
[355566077,1741301444299,-1701.68,9.998e-05,2]
[355566078,1741301444308,-438.95729888,9.998e-05,2]
[355566079,1741301444318,-500.0,9.998e-05,2]
[355566080,1741301444327,-500.0,9.998e-05,2]
[355566081,1741301444336,-806.3,9.998e-05,2]
[355566082,1741301444346,-545.88,9.998e-05,2]
[355566083,1741301444356,-1000.0,9.998e-05,2]
[355566084,1741301444366,-1487.13,9.998e-05,2]
[355566085,1741301444375,-500.0,9.998e-05,2]
[355566086,1741301444384,-2870.21,9.998e-05,2]
[355566087,1741301444393,-500.0,9.998e-05,2]
[355566088,1741301444402,-500.0,9.998e-05,2]
[355566089,1741301444411,-6888.47,9.998e-05,2]
[355566090,1741301444420,-500.0,9.998e-05,2]
[355566091,1741301444430,-504.66536415,9.998e-05,2]
[355566092,1741301444439,-3162.98,9.998e-05,2]
[355566093,1741301444447,-1996.24,9.998e-05,2]
[355566094,1741301444456,-500.0,9.998e-05,2]
[355566095,1741301444466,-1960.9,9.998e-05,2]
[355566096,1741301444474,-500.0,9.998e-05,2]
[355566097,1741301444483,-1524.43,9.998e-05,2]
[355566098,1741301444493,-500.0,9.998e-05,2]
[355566099,1741301444502,-500.0,9.998e-05,2]
[355566100,1741301444510,-500.0,9.998e-05,2]
[355566101,1741301444519,-499.99958894,9.998e-05,2]
[355566102,1741301444528,-500.0,9.998e-05,2]
[355566103,1741301444538,-500.0,9.998e-05,2]
[355566104,1741301444548,-868.69,9.998e-05,2]
[355566105,1741301444561,-618.82,9.998e-05,2]
[355566106,1741301444570,-5117.94,9.998e-05,2]
[355566107,1741301444579,-500.0,9.998e-05,2]
[355566108,1741301444588,-1610.52,9.998e-05,2]
[355566109,1741301444598,-500.0,9.998e-05,2]
[355566110,1741301444607,-500.0,9.998e-05,2]
[355566111,1741301444616,-500.0,9.998e-05,2]
[355566112,1741301444624,-500.0,9.998e-05,2]
[355566113,1741301444635,-505.77680475,9.998e-05,2]
[355566114,1741301444644,-500.0,9.998e-05,2]
[355566115,1741301444654,-500.0,9.998e-05,2]
[355566116,1741301444663,-500.0,9.998e-05,2]
[355566117,1741301444672,-517.92134827,9.998e-05,2]
[355566118,1741301444681,-500.0,9.998e-05,2]
[355566119,1741301444690,-500.0,9.998e-05,2]
[355566120,1741301444699,-1282.83,9.998e-05,2]
[355566121,1741301444708,-500.0,9.998e-05,2]
[355566122,1741301444718,-500.0,9.998e-05,2]
[355566123,1741301444726,-500.0,9.998e-05,2]
[355566124,1741301444737,-500.0,9.998e-05,2]
[355566125,1741301444746,-500.0,9.998e-05,2]
[355566126,1741301444756,-175.04459875,9.998e-05,2]
[355566127,1741301444765,-993.29,9.998e-05,2]
[355566128,1741301444775,-500.0,9.998e-05,2]
[355566129,1741301444784,-500.0,9.998e-05,2]
[355566130,1741301444793,-505.97879603,9.998e-05,2]
[355566131,1741301444801,-500.0,9.998e-05,2]
[355566132,1741301444810,-1830.31,9.998e-05,2]
[355566133,1741301444819,-1025.36,9.998e-05,2]
[355566134,1741301444828,-500.36380578,9.999e-05,2]
[355566135,1741301444837,-500.0,9.999e-05,2]
[355566136,1741301444845,-303.54606983,9.999e-05,2]
[355566137,1741301444854,-503.58563812,9.999e-05,2]
[355566138,1741301444864,-500.0,9.999e-05,2]
[355566139,1741301444873,-500.0,9.999e-05,2]
[355566140,1741301444882,-502.88821685,9.999e-05,2]
[355566141,1741301444891,-503.64029271,9.999e-05,2]
[355566142,1741301444901,-500.0,9.999e-05,2]
[355566143,1741301444911,-500.0,9.999e-05,2]
[355566144,1741301444920,-500.0,9.999e-05,2]
[355566145,1741301444930,-503.0232213,9.999e-05,2]
[355566146,1741301444939,-397.25724036,9.999e-05,2]
[355566147,1741301444949,-500.0,9.999e-05,2]
[355566148,1741301444959,-502.53622273,9.999e-05,2]
[355566149,1741301444969,-503.0616908,9.999e-05,2]
[355566150,1741301444979,-500.0,9.999e-05,2]
[355566151,1741301444988,-312.53764283,9.999e-05,2]
[355566152,1741301444998,-500.0,9.999e-05,2]
[355566153,1741301445007,-500.0,9.999e-05,2]
[355566154,1741301445016,-500.0,9.999e-05,2]
[355566155,1741301445025,-500.0,9.999e-05,2]
[355566156,1741301445034,-420.32741824,9.999e-05,2]
[355566157,1741301445043,-509.50271212,9.999e-05,2]
[355566158,1741301445053,-505.59704104,9.999e-05,2]
[355566159,1741301445062,-502.42321405,9.999e-05,2]
[355566160,1741301445071,-501.72183613,9.999e-05,2]
[355566161,1741301445081,-525.63002547,9.999e-05,2]
[355566162,1741301445091,-501.03911202,9.999e-05,2]
[355566163,1741301445100,-500.0,9.999e-05,2]
[355566164,1741301445109,-637.74795811,9.999e-05,2]
[355566165,1741301445118,-500.0,9.999e-05,2]
[355566166,1741301445127,-500.0,9.999e-05,2]
[355566167,1741301445136,-504.36565173,9.999e-05,2]
[355566168,1741301445145,-500.0,9.999e-05,2]
[355566169,1741301445154,-500.0,9.999e-05,2]
[355566170,1741301445163,-500.0,9.999e-05,2]
[355566171,1741301445172,-500.0,9.999e-05,2]
[355566172,1741301445183,-500.0,9.999e-05,2]
[355566173,1741301445193,-500.0,9.999e-05,2]
[355566174,1741301445392,-500.0,9.999e-05,2]
[355566175,1741301445406,-500.0,9.999e-05,2]
[355566176,1741301445415,-500.0,9.999e-05,2]
[355566177,1741301445424,-500.0,9.999e-05,2]
[355566178,1741301445434,-500.0,9.999e-05,2]
[355566179,1741301445444,-506.46250044,9.999e-05,2]
[355566180,1741301445453,-500.0,9.999e-05,2]
[355566181,1741301445463,-500.0,9.999e-05,2]
[355566182,1741301445474,-500.0,9.999e-05,2]
[355566183,1741301445484,-500.0,9.999e-05,2]
[355566184,1741301445494,-500.0,9.999e-05,2]
[355566185,1741301445503,-500.0,9.999e-05,2]
[355566186,1741301445513,-500.0,9.999e-05,2]
[355566187,1741301445523,-500.0,9.999e-05,2]
[355566188,1741301445533,-500.0,9.999e-05,2]
[355566189,1741301445543,-545.65336078,9.999e-05,2]
[355566190,1741301445553,-621.1825297,9.999e-05,2]
[355566191,1741301445566,-508.15952098,9.999e-05,2]
[355566192,1741301445576,-500.0,9.999e-05,2]
[355566193,1741301445585,-500.0,9.999e-05,2]
[355566194,1741301445595,-500.0,9.999e-05,2]
[355566195,1741301445605,-500.0,9.999e-05,2]
[355566196,1741301445615,-500.0,9.999e-05,2]
[355566197,1741301445624,-500.0,9.999e-05,2]
[355566198,1741301445635,-500.0,9.999e-05,2]
[355566199,1741301445645,-500.0,9.999e-05,2]
[355566201,1741301445654,-500.0,9.999e-05,2]
[355566202,1741301445664,-500.0,9.999e-05,2]
[355566203,1741301445673,-516.51794618,9.999e-05,2]
[355566204,1741301445683,-500.0,9.999e-05,2]
[355566205,1741301445692,-500.0,9.999e-05,2]
[355566206,1741301445701,-508.01201702,9.999e-05,2]
[355566207,1741301445711,-500.0,9.999e-05,2]
[355566208,1741301445720,-500.0,9.999e-05,2]
[355566209,1741301445730,-500.0,9.999e-05,2]
[355566210,1741301445740,-507.02912201,9.999e-05,2]
[355566211,1741301445750,-507.02998905,9.999e-05,2]
[355566212,1741301445759,-500.0,9.999e-05,2]
[355566213,1741301445769,-500.0,9.999e-05,2]
[355566214,1741301445779,-500.0,9.999e-05,2]
[355566215,1741301445788,-500.0,9.999e-05,2]
[355566216,1741301445798,-500.0,9.999e-05,2]
[355566217,1741301445807,-500.0,9.999e-05,2]
[355566218,1741301445818,-500.0,9.999e-05,2]
[355566219,1741301445827,-500.0,9.999e-05,2]
[355566220,1741301445837,-500.0,9.999e-05,2]
[355566221,1741301445846,-500.0,9.999e-05,2]
[355566222,1741301445856,-500.0,9.999e-05,2]
[355566223,1741301445866,-500.0,9.999e-05,2]
[355566224,1741301445875,-513.43096182,9.999e-05,2]
[355566225,1741301445884,-500.0,9.999e-05,2]
[355566226,1741301445894,-500.0,9.999e-05,2]
[355566227,1741301445903,-500.0,9.999e-05,2]
[355566228,1741301445912,-992.59,9.999e-05,2]
[355566229,1741301445922,-500.0,9.999e-05,2]
[355566230,1741301445930,-500.0,9.999e-05,2]
[355566231,1741301445939,-500.0,9.999e-05,2]
[355566232,1741301445949,-500.0,9.999e-05,2]
[355566233,1741301445958,-500.0,9.999e-05,2]
[355566234,1741301445967,-507.71279119,9.999e-05,2]
[355566235,1741301445976,-500.0,9.999e-05,2]
[355566236,1741301445985,-500.0,9.999e-05,2]
[355566237,1741301445995,-610.99435329,9.999e-05,2]
[355566238,1741301446004,-500.0,9.999e-05,2]
[355566239,1741301446013,-500.0,9.999e-05,2]
[355566240,1741301446023,-500.0,9.999e-05,2]
[355566241,1741301446032,-500.0,9.999e-05,2]
[355566242,1741301446041,-500.0,9.999e-05,2]
[355566243,1741301446050,-507.41585096,9.999e-05,2]
[355566244,1741301446060,-500.0,9.999e-05,2]
[355566245,1741301446069,-500.0,9.999e-05,2]
[355566246,1741301446078,-500.0,9.999e-05,2]
[355566247,1741301446088,-500.0,9.999e-05,2]
[355566248,1741301446097,-500.0,9.999e-05,2]
[355566249,1741301446107,-500.0,9.999e-05,2]
[355566250,1741301446116,-500.0,9.999e-05,2]
[355566251,1741301446126,-500.0,9.999e-05,2]
[355566252,1741301446136,-500.0,9.999e-05,2]
[355566253,1741301446145,-500.0,9.999e-05,2]
[355566254,1741301446155,-500.0,9.999e-05,2]
[355566255,1741301446164,-392.52469772,9.999e-05,2]
[355566256,1741301446174,-500.0,9.999e-05,2]
[355566257,1741301446184,-500.0,9.999e-05,2]
[355566258,1741301446193,-500.0,9.999e-05,2]
[355566259,1741301446202,-500.0,9.999e-05,2]
[355566260,1741301446211,-500.0,9.999e-05,2]
[355566261,1741301446220,-500.0,9.999e-05,2]
[355566262,1741301446229,-500.0,9.999e-05,2]
[355566263,1741301446238,-500.0,9.999e-05,2]
[355566264,1741301446247,-500.0,9.999e-05,2]
[355566265,1741301446256,-500.0,9.999e-05,2]
[355566266,1741301446266,-500.0,9.999e-05,2]
[355566267,1741301446275,-500.0,9.999e-05,2]
[355566268,1741301446284,-500.0,9.999e-05,2]
[355566269,1741301446293,-500.0,9.999e-05,2]
[355566270,1741301446302,-513.07133379,9.999e-05,2]
[355566271,1741301446311,-500.0,9.999e-05,2]
[355566272,1741301446320,-500.0,9.999e-05,2]
[355566273,1741301446329,-500.0,9.999e-05,2]
[355566274,1741301446338,-500.0,9.999e-05,2]
[355566275,1741301446347,-500.0,9.999e-05,2]
[355566276,1741301446356,-500.0,9.999e-05,2]
[355566277,1741301446365,-500.0,9.999e-05,2]
[355566278,1741301446374,-264.79688453,9.999e-05,2]
[355566279,1741301446384,-500.0,9.999e-05,2]
[355566280,1741301446393,-158.16,9.999e-05,2]
[355566281,1741301446402,-500.0,9.999e-05,2]
[355566282,1741301446410,-500.0,9.999e-05,2]
[355566283,1741301446419,-500.0,9.999e-05,2]
[355566284,1741301446428,-500.0,9.999e-05,2]
[355566285,1741301446437,-500.0,9.999e-05,2]
[355566286,1741301446447,-266.42593444,9.999e-05,2]
[355566287,1741301446460,-500.0,9.999e-05,2]
[355566288,1741301446471,-636.33266308,9.999e-05,2]
[355566289,1741301446483,-500.0,9.999e-05,2]
[355566290,1741301446496,-500.0,9.999e-05,2]
[355566291,1741301446506,-500.0,9.999e-05,2]
[355566292,1741301446515,-500.0,9.999e-05,2]
[355566293,1741301446524,-229.2385673,9.999e-05,2]
[355566294,1741301446533,-507.82194949,9.999e-05,2]
[355566295,1741301446543,-500.0,9.999e-05,2]
[355566296,1741301446552,-500.0,9.999e-05,2]
[355566297,1741301446565,-500.0,9.999e-05,2]
[355566298,1741301446574,-500.0,9.999e-05,2]
[355566299,1741301446583,-500.0,9.999e-05,2]
[355566300,1741301446593,-500.0,9.999e-05,2]
[355566301,1741301446602,-500.0,9.999e-05,2]
[355566302,1741301446611,-500.0,9.999e-05,2]
[355566303,1741301446620,-500.0,9.999e-05,2]
[355566304,1741301446628,-500.0,9.999e-05,2]
[355566305,1741301446640,-608.63451024,9.999e-05,2]
[355566306,1741301446649,-500.0,9.999e-05,2]
[355566307,1741301446659,-500.0,9.999e-05,2]
[355566308,1741301446668,-524.53569252,9.999e-05,2]
[355566309,1741301446677,-500.0,9.999e-05,2]
[355566310,1741301446687,-500.0,9.999e-05,2]
[355566311,1741301446696,-504.40773533,9.999e-05,2]
[355566312,1741301446705,-500.0,9.999e-05,2]
[355566313,1741301446715,-500.0,9.999e-05,2]
[355566314,1741301446724,-500.0,9.999e-05,2]
[355566315,1741301446734,-500.0,9.999e-05,2]
[355566316,1741301446742,-500.0,9.999e-05,2]
[355566317,1741301446751,-500.0,9.999e-05,2]
[355566318,1741301446760,-500.0,9.999e-05,2]
[355566319,1741301446769,-500.0,9.999e-05,2]
[355566320,1741301446777,-500.0,9.999e-05,2]
[355566321,1741301446787,-500.0,9.999e-05,2]
[355566322,1741301446797,-500.0,9.999e-05,2]
[355566323,1741301446806,-500.0,9.999e-05,2]
[355566324,1741301446816,-500.0,9.999e-05,2]
[355566325,1741301446825,-500.0,9.999e-05,2]
[355566326,1741301446834,-500.0,9.999e-05,2]
[355566327,1741301446843,-506.35251696,9.999e-05,2]
[355566328,1741301446853,-500.0,9.999e-05,2]
[355566329,1741301446862,-500.0,9.999e-05,2]
[355566330,1741301446872,-514.23922031,9.999e-05,2]
[355566331,1741301446881,-500.0,9.999e-05,2]
[355566332,1741301446889,-3799.25,9.999e-05,2]
[355566333,1741301446897,-500.0,9.999e-05,2]
[355566334,1741301446906,-500.0,9.999e-05,2]
[355566335,1741301446916,-500.0,9.999e-05,2]
[355566336,1741301446924,-500.0,9.999e-05,2]
[355566337,1741301446931,-500.0,9.999e-05,2]
[355566338,1741301446938,-724.41,9.999e-05,2]
[355566339,1741301446945,-500.0,9.999e-05,2]
[355566340,1741301446953,-500.0,9.999e-05,2]
[355566341,1741301446960,-500.0,9.999e-05,2]
[355566342,1741301446967,-500.0,9.999e-05,2]
[355566343,1741301446973,-500.0,9.999e-05,2]
[355566344,1741301446981,-500.0,9.999e-05,2]
[355566345,1741301446988,-500.0,9.999e-05,2]
[355566346,1741301446995,-523.80010773,9.999e-05,2]
[355566347,1741301447001,-500.0,9.999e-05,2]
[355566348,1741301447008,-500.0,9.999e-05,2]
[355566349,1741301447015,-500.0,9.999e-05,2]
[355566350,1741301447023,-834.35,9.999e-05,2]
[355566351,1741301447032,-500.0,9.999e-05,2]
[355566352,1741301447041,-500.0,9.999e-05,2]
[355566353,1741301447051,-500.0,9.999e-05,2]
[355566354,1741301447060,-500.0,9.999e-05,2]
[355566355,1741301447069,-500.0,9.999e-05,2]
[355566356,1741301447079,-500.0,9.999e-05,2]